Cogmind - Beta 15 @@@ ROGUE MODE // 2025.08.27 @ 13:30:26 Player: polar Result: Destroyed self with Precision Grenade Launcher Performance ------------- Evolutions (3) 1500 Regions Visited (10) 2000 Robots Destroyed (165) 825 Value Destroyed (5228) 5228 Prototype IDs (15) 300 Alien Tech Used (0) 0 Bonus (219) 219 TOTAL SCORE: 10072 Bonus ------- High Alert Combat Kills 76 Follower Combat Kills 143 Cogmind --------- Core Integrity 0/700 Matter 172/300 Energy 290/290 System Corruption 15% Temperature Cool (0) Movement Rolling (115) Ox1 Location -7/Lower Caves Parts ------- > --- POWER (1) -------- Multi-Deuterium Engine > --- PROPULSION (5) --- Carbon-fiber Leg Titanium Leg Armored Huge Wheel > --- UTILITY (5) ------ Armored Scrap Engine Large Storage Unit Seismic Detector Improved Targeting Computer > --- WEAPON (2) ------- Improved EM Pulse Cannon Precision Grenade Launcher > --- INVENTORY (15) --- Carbon-fiber Leg Machine Analyzer Advanced Visual Processing Unit Makeshift Salvage Targeting Computer Core Analyzer ECM Suite Medium Reactive Plating Hacking Suite Hacking Suite Hacking Suite Makeshift Hacking Suite Advanced System Shield Authchip [Processor] Blade Saw Great Axe Peak State ------------ > --- POWER ------------ Multi-Deuterium Engine > --- PROPULSION ------- Carbon-fiber Leg Carbon-fiber Leg Titanium Leg Armored Huge Wheel > --- UTILITY ---------- Armored Scrap Engine Large Storage Unit Improved Targeting Computer Medium Reactive Plating > --- WEAPON ----------- Precision Grenade Launcher Ballistic Assault Construct/C > --- INVENTORY -------- Machine Analyzer Advanced Visual Processing Unit Seismic Detector Makeshift Salvage Targeting Computer Core Analyzer ECM Suite Hacking Suite Hacking Suite Hacking Suite Makeshift Hacking Suite Advanced System Shield Authchip [Processor] Improved EM Pulse Cannon Blade Saw Great Axe [Rating: 63] Favorites ----------- Power Heavy Ion Engine Engine Heavy Ion Engine Power Core Light Nuclear Core Propulsion Light Treads Treads Light Treads Leg Carbon-fiber Leg Wheel Armored Wheel Hover Unit Improved Hover Unit Flight Unit Constructs Utility Large Storage Unit Device Armored Scrap Engine Storage Large Storage Unit Processor Targeting Computer Hackware Hacking Suite Protection Medium Reactive Plating Weapon Constructs Energy Gun Medium Laser Energy Cannon Improved EM Pulse Cannon Ballistic Gun Assault Rifle Ballistic Cannon Constructs Launcher Precision Grenade Launcher Special Weapon Mining Laser Impact Weapon Hammer Slashing Weapon Katana Special Melee Weapon Datajack Build | -11 -10 -10 -9 -9 -9 -7 -7 -7 -7 -7 ------- Run | Yrd Mat Min Mat Sto Rec Fac Was Fac Low Low Slots Evolved 6 | . . . 2 . . 4 . . . . Power . | . . . . . . . . . . . Propulsion 3 | . . . . . . 3 . . . . Utility 3 | . . . 2 . . 1 . . . . Weapon . | . . . . . . . . . . . Parts Attached 99 | 7 10 6 23 13 4 16 1 13 5 1 Power 7 | 1 2 . 3 1 . . . . . . Engine 6 | 1 2 . 2 1 . . . . . . Core 1 | . . . 1 . . . . . . . Reactor . | . . . . . . . . . . . Propulsion 29 | 2 3 2 8 2 1 . . 7 4 . Treads 10 | 2 . 1 1 1 1 . . 4 . . Leg 4 | . . . 1 . . . . . 3 . Wheel 12 | . 3 1 6 1 . . . . 1 . Hover 3 | . . . . . . . . 3 . . Flight . | . . . . . . . . . . . Utility 33 | 2 3 . 4 4 2 10 1 6 1 . Device 17 | 1 1 . 1 1 1 5 1 5 1 . Storage 5 | 1 2 . 1 . . 1 . . . . Processor 4 | . . . 2 . . 2 . . . . Hackware 1 | . . . . . . . . 1 . . Protection 6 | . . . . 3 1 2 . . . . Artifact . | . . . . . . . . . . . Weapon 30 | 2 2 4 8 6 1 6 . . . 1 Energy Gun 12 | 1 2 1 1 6 1 . . . . . Energy Cannon 2 | . . . . . . 1 . . . 1 Ballistic Gun 4 | 1 . . 3 . . . . . . . Ballistic Cannon 3 | . . . 2 . . 1 . . . . Launcher 3 | . . 1 . . . 2 . . . . Special Weapon 1 | . . 1 . . . . . . . . Impact Weapon 1 | . . 1 . . . . . . . . Slashing Weapon 3 | . . . 1 . . 2 . . . . Piercing Weapon . | . . . . . . . . . . . Special Melee Weapon 1 | . . . 1 . . . . . . . Unidentified Prototypes 5 | . . . . 3 1 1 . . . . Parts Lost 41 | . 3 3 9 8 2 6 . 8 1 1 Power 5 | . 1 . 2 . . 1 . 1 . . Propulsion 20 | . 2 2 3 2 1 2 . 7 1 . Utility 6 | . . . . 4 . 2 . . . . Weapon 10 | . . 1 4 2 1 1 . . . 1 Highest Loss Streak 7 | . 2 2 7 2 1 2 . 4 1 1 To Critical Strikes . | . . . . . . . . . . . Average Backups 13 | 3 10 14 14 14 14 13 15 14 14 15 Power . | . . 2 . . 1 . . . . . Propulsion 2 | 2 3 3 4 4 4 . . . . . Utility 7 | . 3 6 4 4 5 10 12 11 11 12 Weapon 3 | 1 2 3 4 4 3 2 3 3 3 2 Tool/Special . | . . . . . . . . . . . Unused Backups 36 | . 5 . 6 2 . 8 1 3 . 11 Power 3 | . 1 . 1 . . 1 . . . . Propulsion 8 | . 2 . 2 . . 4 . . . . Utility 17 | . 1 . 1 . . 1 1 3 . 10 Weapon 8 | . 1 . 2 2 . 2 . . . 1 Tool/Special . | . . . . . . . . . . . Average Slot Usage (%) 85 | . 95 99 97 97 96 66 69 75 79 76 Engine 8 | . 9 14 7 10 11 5 7 6 7 7 Treads 6 | . 11 . 2 7 9 1 . 10 12 . Leg 2 | . . . 1 . . . . . 11 15 Wheel 11 | . 16 27 17 13 11 7 15 4 1 7 Hover 1 | . . . . . . 5 . 7 . . Device 12 | . 14 14 21 7 11 9 13 11 13 14 Storage 9 | . 14 14 11 11 11 7 7 7 7 7 Processor 6 | . . . 10 11 11 7 7 7 7 7 Protection 3 | . . . . 13 8 3 1 1 1 . Energy Gun 10 | . 21 26 5 19 21 3 . . . . Ballistic Gun 2 | . 6 . 9 . . 1 . . . . Ballistic Cannon 1 | . . . 4 . . . 1 1 7 . Slashing Weapon 2 | . . . . 1 . 6 2 6 3 . Peak Build Rating 63 | 7 11 11 19 24 37 59 59 59 63 63 Average Rating 32 | 5 9 9 16 21 22 50 58 49 54 57 On Entrance 29 | . 7 11 9 19 18 37 58 59 44 63 Naked Turns . | . . . . . . . . . . . Heaviest Build 66 | 13 30 30 34 44 38 60 58 60 62 66 Greatest Support 47 | 40 40 26 32 23 22 40 40 40 47 28 Greatest Overweight (x) 5 | 2 1 1 3 3 3 4 3 5 2 2 Average Overweight (x) 1 | . . 1 1 1 2 1 1 2 1 1 Largest Inventory Capacity 15 | 8 15 15 15 15 15 15 15 15 15 15 Average Capacity 14 | 7 11 15 15 15 15 15 15 15 15 15 Most Carried 15 | 7 15 15 15 15 15 15 15 15 15 15 Average Carried 13 | 3 10 14 14 14 14 13 14 14 14 14 Final Capacity 15 | 8 15 15 15 15 15 15 15 15 15 15 Final Carried 15 | 7 15 13 15 15 15 15 15 15 15 15 Scrap Engine Consumption 94 | . . . . . 16 55 2 19 2 . Constructs Created 9 | . . . . . . 6 . 3 . . Constructs Modified 26 | . . . . . . 18 3 5 . . Class Distribution -------------------- 64% | Mutant 20% | Construct 15% | Scavenger-Mutant Dominant Class ---------------- Mutant | -10/Materials Mutant | -10/Mines Scavenger-Mutant | -9/Materials Mutant | -9/Storage Mutant | -9/Recycling Construct | -7/Factory Construct | -7/Waste Mutant | -7/Factory Scavenger-Mutant | -7/Lower Caves Mutant | -7/Lower Caves Resources | -11 -10 -10 -9 -9 -9 -7 -7 -7 -7 -7 ----------- Run | Yrd Mat Min Mat Sto Rec Fac Was Fac Low Low Matter Collected 2846 | 260 305 40 617 260 40 627 16 370 249 62 Remotely . | . . . . . . . . . . . Salvage Created 6442 | 123 917 243 784 1456 484 1374 16 692 244 109 Parts 358 | 11 52 17 55 78 29 54 5 45 9 3 Haulers Intercepted 6 | . 1 . 2 2 . . . 1 . . Recyclers Shooed 2 | 1 1 . . . . . . . . . Parts Field Recycled . | . . . . . . . . . . . Retrieved Matter . | . . . . . . . . . . . Parts Self-Destructed 11 | . . . . . . . . . 10 1 Prevented 1 | . . . . . . . . . . 1 Kills | -11 -10 -10 -9 -9 -9 -7 -7 -7 -7 -7 ------- Run | Yrd Mat Min Mat Sto Rec Fac Was Fac Low Low Combat Hostiles Destroyed 123 | . 17 12 17 23 7 26 1 8 8 4 Melee 11 | . . . . . 1 7 1 2 . . Guns 69 | . 17 11 11 19 5 6 . . . . Cannons 14 | . . . 6 . . 3 . 4 1 . AOE 24 | . . 1 . 2 1 7 . 2 7 4 Classes Destroyed 18 | 2 6 . 2 1 2 3 1 1 . . Worker 2 | . . . . . . 2 . . . . Builder 3 | . . . 1 1 . 1 . . . . Tunneler 2 | 2 . . . . . . . . . . Hauler 6 | . 1 . 2 2 . . . 1 . . Recycler 10 | 1 1 . 1 1 . 4 . 2 . . Mechanic 1 | . 1 . . . . . . . . . Operator 9 | . 3 . 1 1 . . . 4 . . Watcher 9 | . 3 . 3 2 . . . 1 . . Swarmer 26 | . 3 9 8 . . 3 . 1 2 . Cutter 1 | . . . . . . . 1 . . . Grunt 53 | . 14 3 4 13 . 9 . . 6 4 Brawler 1 | . . . . . . . . 1 . . Duelist 2 | . . . . 1 . . . 1 . . Sentry 25 | . . . 5 9 4 4 . 3 . . Hunter 1 | . . . . . . 1 . . . . Programmer 11 | . . . . . . 9 . 2 . . Scientist 1 | . . . . . 1 . . . . . Scrapper 3 | . . . . . 3 . . . . . Best Kill Streak 7 | 1 5 3 7 5 3 4 1 3 3 3 Combat Bots Only 6 | . 5 3 6 3 3 3 1 3 3 3 Max Kills in Single Turn 2 | 1 1 2 2 2 1 2 1 2 2 1 Gunslinging 1 | . . . . 1 . . . . . . Exploded 2 | . . 1 . 2 1 2 . 2 2 1 Melee 1 | . . . . . 1 1 1 1 . . Uniques/NPCs Destroyed . | . . . . . . . . . . . Combat | -11 -10 -10 -9 -9 -9 -7 -7 -7 -7 -7 -------- Run | Yrd Mat Min Mat Sto Rec Fac Was Fac Low Low Hostile Shots Fired 903 | . 95 44 114 118 22 286 . 160 44 20 Missed 286 | . 31 10 25 43 7 93 . 60 10 7 Hits 617 | . 64 34 89 75 15 193 . 100 34 13 Melee 6 | . . . . . . . . 6 . . Projectile 611 | . 64 34 89 75 15 193 . 94 34 13 Critical Strikes 22 | . . . 3 5 2 9 . . 1 2 Part Disruptions 1 | . . . . . . 1 . . . . Damage Taken 7856 | . 732 339 953 1190 322 2303 . 1131 596 290 Core 1264 | . 127 83 180 152 20 351 . 190 88 73 Absorbed by Shields . | . . . . . . . . . . . Ignored by Resistances 195 | . . . . . . 159 . 36 . . Regen/Repaired (Parts) 1455 | . 16 . 97 111 . 846 77 308 . . Core Remaining (%) 42 | 100 . 16 . . 12 . . . . . Volleys Fired 458 | 4 99 17 61 72 22 108 1 39 22 13 Largest 2 | 2 2 2 2 2 2 2 1 1 2 2 Hottest 150 | 70 100 150 68 105 90 90 39 39 75 105 Shots Fired 716 | 8 198 34 112 133 44 108 1 39 24 15 Gun 574 | 8 198 32 80 133 44 74 . 5 . . Cannon 115 | . . . 32 . . 22 1 34 18 8 Launcher 26 | . . 1 . . . 12 . . 6 7 Special 1 | . . 1 . . . . . . . . Kinetic 229 | 4 68 . 86 . . 52 . 1 18 . Thermal 243 | 4 130 33 . . . 37 1 38 . . Explosive 26 | . . 1 . . . 12 . . 6 7 Electromagnetic 218 | . . . 26 133 44 7 . . . 8 Robot Hit Streak 34 | 2 11 6 13 12 9 15 17 34 18 6 Robot Miss Streak 5 | 1 4 2 5 5 2 3 . 2 2 2 Penetration Max . | . . . . . . . . . . . Secondary Targets 8 | . 2 2 1 3 . . . . . . Max Gunslinging Chain 1 | . 1 1 1 1 . . . . . . Shots Hit Robots 554 | 4 127 19 75 91 40 122 2 47 18 9 Core Hits 275 | 4 47 13 32 45 20 55 1 32 17 9 Critical Kills . | . . . . . . . . . . . Critical Parts Destroyed 2 | . 1 . 1 . . . . . . . Critical Strikes 25 | . 8 2 2 1 1 8 . 2 1 . Burn 9 | . 7 2 . . . . . . . . Destroy 2 | . 1 . 1 . . . . . . . Blast 2 | . . . . . . 1 . . 1 . Corrupt 3 | . . . 1 1 1 . . . . . Sever 9 | . . . . . . 7 . 2 . . Melee Attacks 118 | . . 8 4 4 1 63 1 34 3 . Impact 9 | . . 8 1 . . . . . . . Slashing 109 | . . . 3 4 1 63 1 34 3 . Piercing . | . . . . . . . . . . . Sneak Attacks 11 | . . . 1 1 1 6 1 1 . . Combat Hostiles 2 | . . . . . 1 1 . . . . Follow-up Attacks . | . . . . . . . . . . . Damage Inflicted 12893 | 49 1613 312 1345 1906 795 3746 89 1471 915 652 Guns 6197 | 49 1607 241 856 1643 610 1107 . 84 . . Cannons 2015 | . . . 381 . . 432 31 818 256 97 Explosions 2435 | . . 71 . 203 114 740 . 93 659 555 Melee 2222 | . . . 101 60 71 1456 58 476 . . Ramming 24 | . 6 . 7 . . 11 . . . . Kinetic 2555 | 12 549 . 925 . . 813 . . 256 . Thermal 3311 | 37 1058 241 . 203 114 593 31 995 39 . Explosive 1986 | . . 71 . . . 740 . . 620 555 Electromagnetic 2795 | . . . 312 1643 610 133 . . . 97 Impact . | . . . . . . . . . . . Slashing 2222 | . . . 101 60 71 1456 58 476 . . Piercing . | . . . . . . . . . . . Highest Corruption 15 | . . . . . . 14 14 15 15 15 Average Corruption 12 | . . . . . . 10 14 12 15 15 Corruption Purged 4 | . . . . . . . . 4 . . Corruption Blocked . | . . . . . . . . . . . Effects 217 | . . . . . . 81 6 53 53 24 Message Errors 51 | . . . . . . 21 3 10 13 4 Matter Fused 48 | . . . . . . 11 1 16 11 9 Heat Flow Errors 28 | . . . . . . 11 . 5 10 2 Energy Discharges 23 | . . . . . . 8 . 8 5 2 Parts Rejected 3 | . . . . . . 2 . . 1 . Parts Fused 1 | . . . . . . . . 1 . . Data Loss (minor) 31 | . . . . . . 11 1 10 5 4 Data Loss (major) 16 | . . . . . . 10 . 3 2 1 Misfires 1 | . . . . . . . . . . 1 Alerts 10 | . . . . . . 5 1 . 3 1 Misdirections 1 | . . . . . . 1 . . . . Weapon Failures 4 | . . . . . . 1 . . 3 . Overload Shots . | . . . . . . . . . . . Overflow Damage 246 | . . . 24 37 . 128 . 11 27 19 Projectiles 44 | . . . 14 . . . . 11 . 19 Explosions 84 | . . . . 37 . 20 . . 27 . Melee 118 | . . . 10 . . 108 . . . . Knockbacks 9 | . . . 3 . . 5 . . 1 . Impact . | . . . . . . . . . . . Kinetic 8 | . . . 3 . . 4 . . 1 . Secondary 1 | . . . . . . 1 . . . . Self-Inflicted Damage 388 | . . . 3 108 42 47 . 88 . 100 Shots 10 | . . . . 2 1 1 . 2 . 4 Rammed 4 | . 2 . 1 . . 1 . . . . Targets Rammed 4 | . 2 . 1 . . 1 . . . . Kicked . | . . . . . . . . . . . Crushed . | . . . . . . . . . . . Highest Temperature 384 | 18 174 176 50 384 144 267 . 266 267 218 Average Temperature 78 | 8 51 60 10 121 45 83 . 83 76 42 Received Heat Transfer 2356 | . 387 84 279 462 166 432 . 150 279 117 Effects 5 | . . . . 4 . 1 . . . . Interference 5 | . . . . 4 . 1 . . . . Siege Activations . | . . . . . . . . . . . Martial Activations . | . . . . . . . . . . . Shielding Activations . | . . . . . . . . . . . Robots Disrupted 1 | . . . . 1 . . . . . . Combat Hostiles 1 | . . . . 1 . . . . . . Robots Corrupted 4 | . . . . 3 . 1 . . . . Combat Hostiles 3 | . . . . 2 . 1 . . . . Parts Fried 19 | . . . 1 12 4 2 . . . . Impact Corruptions . | . . . . . . . . . . . Robots Melted 2 | . . . . . . 2 . . . . Combat Hostiles 2 | . . . . . . 2 . . . . Parts Melted 30 | . 8 2 1 . 1 16 . 2 . . Heat Transferred 6743 | 111 3626 851 . 150 137 1768 . 50 50 . Parts Sabotaged . | . . . . . . . . . . . Parts Stolen . | . . . . . . . . . . . Parts Stripped . | . . . . . . . . . . . Power Chain Reactions 9 | . . . . 3 3 . . 2 1 . Alert | -11 -10 -10 -9 -9 -9 -7 -7 -7 -7 -7 ------- Run | Yrd Mat Min Mat Sto Rec Fac Was Fac Low Low Maximum Alert Level 2 | . . . 1 1 . 2 . . . . Low Security (%) 84 | 100 100 100 98 51 100 63 100 100 . . Level 1 9 | . . . 1 48 . 11 . . . . Level 2 6 | . . . . . . 25 . . . . Level 3 . | . . . . . . . . . . . Level 4 . | . . . . . . . . . . . Level 5 . | . . . . . . . . . . . High Security . | . . . . . . . . . . . Max Security . | . . . . . . . . . . . Peak Influence 518 | 5 171 136 204 342 142 518 199 107 . . Initial 200 | . . 36 29 70 122 200 179 97 . . Average 117 | 1 86 48 109 218 36 206 170 21 . . Influence Increases 4763 | 15 604 324 833 847 260 1241 20 309 205 105 Destroy 0b10 Robot/C 2560 | . 340 240 480 460 80 540 20 160 160 80 Destroy 0b10 Robot/NC 220 | 15 45 . 45 40 . 35 . 40 . . Destroy Leader 652 | . 88 40 132 118 . 180 . 54 30 10 Allied During Kill 19 | . . . 16 . . 3 . . . . Successful Hack 214 | . 39 . 50 37 46 13 . 29 . . Select Force Hacks 150 | . . . 30 . 120 . . . . . Disable Machine 180 | . . . . 90 . 90 . . . . Destroy Structure 163 | . 2 14 5 27 14 75 . 26 . . Advance Influence 200 | . . . . . . 200 . . . . Partial Spotted 30 | . . . . . . 30 . . . . Lose Combat Pursuer 375 | . 90 30 75 75 . 75 . . 15 15 Influence Decreases 4763 | 15 510 341 742 700 575 729 393 448 141 169 Entered New Map 785 | . . 58 48 98 193 . 333 42 . 13 Time Decay 3470 | 15 480 273 481 522 372 619 60 381 121 146 Lost Part 315 | . 30 10 90 80 10 50 . 25 10 10 Lost Ally 90 | . . . 20 . . 60 . . 10 . Purge Threat 103 | . . . 103 . . . . . . . Squads Dispatched 25 | . 5 . 3 1 . 13 . 3 . . Investigation 6 | . 2 . 2 . . 2 . . . . Extermination 9 | . . . . . . 7 . 2 . . Reinforcement 6 | . 3 . 1 . . 1 . 1 . . Assault . | . . . . . . . . . . . Garrison 4 | . . . . 1 . 3 . . . . Intercept . | . . . . . . . . . . . Searches Triggered . | . . . . . . . . . . . Construction Impeded . | . . . . . . . . . . . Haulers Reinforced . | . . . . . . . . . . . Active Scanning Responses . | . . . . . . . . . . . Cargo Convoy Interrupts . | . . . . . . . . . . . Stealth | -11 -10 -10 -9 -9 -9 -7 -7 -7 -7 -7 --------- Run | Yrd Mat Min Mat Sto Rec Fac Was Fac Low Low Distress Signals 3 | . . . 1 2 . . . . . . Communications Jammed . | . . . . . . . . . . . Distress Signals . | . . . . . . . . . . . Times Spotted 206 | . 36 15 36 33 6 42 5 16 12 5 Peak Tracking Total 6 | . 6 4 5 5 3 4 5 3 3 3 Tactical Retreats 17 | . 3 2 2 5 . 3 . . 1 1 Traps | -11 -10 -10 -9 -9 -9 -7 -7 -7 -7 -7 ------- Run | Yrd Mat Min Mat Sto Rec Fac Was Fac Low Low Traps Triggered 12 | . 2 . . 5 . 4 . 1 . . Indirectly . | . . . . . . . . . . . Trap Hack Attempts 90 | . . . 90 . . . . . . . Triggered . | . . . . . . . . . . . Disarmed 2 | . . . 2 . . . . . . . Reprogrammed 6 | . . . 6 . . . . . . . Reused . | . . . . . . . . . . . Traps Extracted . | . . . . . . . . . . . Installed . | . . . . . . . . . . . Triggered . | . . . . . . . . . . . Machines | -11 -10 -10 -9 -9 -9 -7 -7 -7 -7 -7 ---------- Run | Yrd Mat Min Mat Sto Rec Fac Was Fac Low Low Machines Disabled 13 | . . . . 6 1 6 . . . . Max in Single Turn 1 | . . . . 1 1 1 . . . . Garrison Access 1 | . . . . 1 . . . . . . Machines Repaired . | . . . . . . . . . . . Machines Dismantled . | . . . . . . . . . . . Machines Sabotaged . | . . . . . . . . . . . Overloaded Fab Kills . | . . . . . . . . . . . Hacking | -11 -10 -10 -9 -9 -9 -7 -7 -7 -7 -7 --------- Run | Yrd Mat Min Mat Sto Rec Fac Was Fac Low Low Machines Accessed 71 | . 8 . 16 15 10 13 . 9 . . Terminals 45 | . 5 . 11 11 5 6 . 7 . . Fabricators 1 | . . . . . . 1 . . . . Repair Stations 8 | . 1 . 2 2 . 1 . 2 . . Recycling Units 11 | . 2 . 1 1 4 3 . . . . Scanalyzers 3 | . . . 2 . . 1 . . . . Garrison Access 2 | . . . . 1 . 1 . . . . Total Hacks 203 | . 22 . 61 33 28 36 . 23 . . Successful 123 | . 15 . 39 18 21 21 . 9 . . Failed 80 | . 7 . 22 15 7 15 . 14 . . Catastrophic 11 | . 1 . 2 1 1 4 . 2 . . Database Lockouts . | . . . . . . . . . . . Manual 116 | . 11 . 42 10 21 17 . 15 . . Terminals 140 | . 16 . 45 24 19 18 . 18 . . Fabricators 6 | . . . . . . 6 . . . . Repair Stations 20 | . 2 . 5 5 . 3 . 5 . . Recycling Units 22 | . 4 . 5 2 7 4 . . . . Scanalyzers 9 | . . . 6 . . 3 . . . . Garrison Access 4 | . . . . 2 . 2 . . . . Terminal Hacks 38 | . 6 . 12 9 8 2 . 1 . . Part Schematic 4 | . . . . . 4 . . . . . Robot Analysis 4 | . 1 . 1 . 2 . . . . . Prototype ID Bank 4 | . 2 . 2 . . . . . . . Open Door 6 | . . . . 6 . . . . . . Branch Access Points 2 | . . . 1 . . . . 1 . . Alert Level 1 | . . . 1 . . . . . . . Unreport Threat 1 | . . . 1 . . . . . . . Locate Traps 6 | . 1 . 2 2 . 1 . . . . Hauler Manifests 2 | . 1 . 1 . . . . . . . Registered Components 3 | . 1 . 1 1 . . . . . . Registered Prototypes 1 | . . . 1 . . . . . . . Zone Layout 2 | . . . 1 . . 1 . . . . Release Object 2 | . . . . . 2 . . . . . Fabricator Hacks 3 | . . . . . . 3 . . . . Network Status 1 | . . . . . . 1 . . . . Load Schematic 1 | . . . . . . 1 . . . . Build 1 | . . . . . . 1 . . . . Repair Station Hacks 15 | . 2 . 4 4 . 2 . 3 . . Scan Component 8 | . 1 . 2 2 . 1 . 2 . . Repair 7 | . 1 . 2 2 . 1 . 1 . . Recycling Unit Hacks 7 | . 2 . 1 . 2 2 . . . . Report Inventory 7 | . 2 . 1 . 2 2 . . . . Scanalyzer 6 | . . . 3 . . 3 . . . . Insert Component 3 | . . . 2 . . 1 . . . . Analyze 3 | . . . 1 . . 2 . . . . Garrison Access Hacks 1 | . . . . 1 . . . . . . Seal Access 1 | . . . . 1 . . . . . . Unauthorized Hacks 53 | . 5 . 19 4 11 9 . 5 . . Terminals 42 | . 5 . 14 4 7 7 . 5 . . Track 3 | . . . 2 1 . . . . . . Botnet 17 | . 4 . 4 2 2 4 . 1 . . Operators 4 | . 1 . 2 1 . . . . . . Skim 18 | . . . 6 . 5 3 . 4 . . Fabricators 2 | . . . . . . 2 . . . . Prioritize 1 | . . . . . . 1 . . . . Liberate 1 | . . . . . . 1 . . . . Repair Stations . | . . . . . . . . . . . Recycling Units 8 | . . . 4 . 4 . . . . . Monitor 1 | . . . 1 . . . . . . . Reject 1 | . . . 1 . . . . . . . Recyclers 1 | . . . 1 . . . . . . . Mask 1 | . . . 1 . . . . . . . Tunnel 4 | . . . . . 4 . . . . . Scanalyzers 1 | . . . 1 . . . . . . . Extract 1 | . . . 1 . . . . . . . Garrison Access . | . . . . . . . . . . . Data Cores Recovered 3 | . . . 1 . . . . 2 . . Used 1 | . . . . . . . . 1 . . Hacking Detections 54 | . 7 . 13 9 5 11 . 9 . . Full Trace Events 4 | . 1 . 1 . . 2 . . . . Feedback Events . | . . . . . . . . . . . Feedback Blocked . | . . . . . . . . . . . Robot Schematics Acquired . | . . . . . . . . . . . Robots Built . | . . . . . . . . . . . Authchips . | . . . . . . . . . . . Time . | . . . . . . . . . . . Total Robot Build Rating . | . . . . . . . . . . . Part Schematics Acquired 7 | . . . 2 . 4 1 . . . . Parts Built 2 | . . . . . . 2 . . . . Authchips . | . . . . . . . . . . . Time 31 | . . . . . . 31 . . . . Total Part Build Rating 4 | . . . . . . 4 . . . . Parts Repaired 7 | . 1 . 2 2 . 1 . 1 . . Time 211 | . 13 . 77 83 . 16 . 22 . . Parts Recycled . | . . . . . . . . . . . Recycled Matter . | . . . . . . . . . . . Retrieved Matter . | . . . . . . . . . . . Retrieved Components . | . . . . . . . . . . . Parts Scanalyzed 3 | . . . 2 . . 1 . . . . Part Schematics Acquired 2 | . . . 1 . . 1 . . . . Parts Damaged . | . . . . . . . . . . . Bothacking | -11 -10 -10 -9 -9 -9 -7 -7 -7 -7 -7 ------------ Run | Yrd Mat Min Mat Sto Rec Fac Was Fac Low Low Used RIF Installer . | . . . . . . . . . . . Robots Hacked . | . . . . . . . . . . . Non-combat . | . . . . . . . . . . . Combat . | . . . . . . . . . . . Robot Hacks Applied . | . . . . . . . . . . . Relay Couplers Released . | . . . . . . . . . . . Fabnet Peak Effective % . | . . . . . . . . . . . Robots Rewired . | . . . . . . . . . . . Allies Hacked 1 | . . . . . . 1 . . . . Hacks Repelled . | . . . . . . . . . . . Allies | -11 -10 -10 -9 -9 -9 -7 -7 -7 -7 -7 -------- Run | Yrd Mat Min Mat Sto Rec Fac Was Fac Low Low Total Allies 4 | . . 1 . . . 3 . . . . Largest Group 3 | . . . 1 . . 3 . . . . Highest-Rated Group 48 | . . . 31 . . 48 . . . . Highest-Rated Ally 31 | . . . 31 . . 16 . . . . Total Orders 16 | . . . . . . . . . 16 . EXPLORE 9 | . . . . . . . . . 9 . RETURN 7 | . . . . . . . . . 7 . Ally Attacks 46 | . . . 32 . . 14 . . . . Total Damage 715 | . . . 542 . . 173 . . . . Kills 9 | . . . 8 . . 1 . . . . Allies Corrupted . | . . . . . . . . . . . Allies Melted . | . . . . . . . . . . . Intel | -11 -10 -10 -9 -9 -9 -7 -7 -7 -7 -7 ------- Run | Yrd Mat Min Mat Sto Rec Fac Was Fac Low Low Active Infowar (turns) 6411 | 57 1590 860 1397 514 . 649 104 751 . 489 Sensors 211 | . . . . . . . 104 107 . . Terrain 2746 | . 947 154 1379 266 . . . . . . Seismic 5062 | 57 643 706 1360 514 . 649 . 644 . 489 Robot Analysis Total 4 | . 1 . 1 . 2 . . . . . Derelict Logs Recovered 4 | . . 3 . . . . . . 1 . Drone Launches 7 | . . . . . . . . . 7 . Drone Recoveries 5 | . . . . . . . . . 5 . Exploration | -11 -10 -10 -9 -9 -9 -7 -7 -7 -7 -7 ------------- Run | Yrd Mat Min Mat Sto Rec Fac Was Fac Low Low Turns Passed 12935 | 188 1590 860 1397 1447 1453 2727 127 1474 1148 524 Spaces Moved 7822 | 102 1044 659 869 851 1032 1674 84 778 331 398 Core 12 | 12 . . . . . . . . . . Treads 891 | 90 265 . . 3 . . . 317 216 . Legs 338 | . . . . . . 237 . . 101 . Wheels 6182 | . 779 659 869 848 1032 1041 84 458 14 398 Hover 399 | . . . . . . 396 . 3 . . Flight . | . . . . . . . . . . . Fastest Speed 50 | 50 80 95 95 100 100 86 86 135 130 115 Average Speed 126 | 155 110 101 105 117 128 126 122 156 231 115 Slowest Speed 380 | 160 160 115 130 240 135 150 135 380 260 130 Overloaded Moves . | . . . . . . . . . . . Propulsion Burnouts . | . . . . . . . . . . . Robots Hopped . | . . . . . . . . . . . Potential Cave-ins . | . . . . . . . . . . . Cave-ins Triggered . | . . . . . . . . . . . Exploration Rate (%) 63 | 6 98 91 73 86 99 40 60 24 70 54 Regions Visited 10 Branch Regions 5 Pre-discovered Areas 14 | . . 2 3 1 8 . . . . . Known Exits Taken 2 | . . . 1 . . . . 1 . . Unknown Exits Taken 6 | 1 1 1 . 1 1 . . . 1 . Scrap Searched 4 | . . 1 . . . . . . 3 . Spaces Dug 69 | . . 5 2 2 . 30 . 20 10 . Terrain Destroyed 284 | . . 19 2 25 13 105 . 24 42 54 Melee 42 | . . 5 2 2 . 12 . 20 1 . Projectile 2 | . . 1 . . . 1 . . . . AOE 240 | . . 13 . 23 13 92 . 4 41 54 Terrain Rammed . | . . . . . . . . . . . Walls Destroyed . | . . . . . . . . . . . Machines Disabled . | . . . . . . . . . . . Actions | -11 -10 -10 -9 -9 -9 -7 -7 -7 -7 -7 --------- Run | Yrd Mat Min Mat Sto Rec Fac Was Fac Low Low Total 9938 | 120 1280 794 1230 1150 1112 2092 105 932 676 447 Wait 1119 | 1 97 101 134 172 46 171 13 45 306 33 Move 7813 | 101 1043 658 868 850 1031 1674 83 777 330 398 Hop . | . . . . . . . . . . . Pick Up 84 | 7 17 1 21 8 3 17 2 6 2 . Fast Attach 56 | 7 2 . 8 13 1 9 . 11 5 . Attach 35 | . 2 3 8 5 2 9 1 3 1 1 Detach 18 | . 1 . . 1 . 10 . 5 . 1 Swap 59 | . 6 6 16 8 2 9 2 5 4 1 Drop 74 | . 11 . 19 6 4 22 2 7 3 . Fire 458 | 4 99 17 61 72 22 108 1 39 22 13 Melee 117 | . . 8 4 4 1 62 1 34 3 . Ram 2 | . . . 1 . . 1 . . . . Kick . | . . . . . . . . . . . Crush 2 | . 2 . . . . . . . . . Escape Stasis 8 | . . . . 8 . . . . . . Rewire 3 | . . . . 3 . . . . . . Trap 90 | . . . 90 . . . . . . . Miscellaneous . | . . . . . . . . . . . Route ------- -11/Scrapyard -10/Materials (discovered 4 exits: *Mat x2 / [*Min x2]) -10/Mines -9/Materials (discovered 6 exits: *Mat x3 / *Min x2 / *Sto) -9/Storage (discovered 2 exits: *Mat / *Rec) -9/Recycling -7/Factory -7/Waste -7/Factory (discovered 4 exits: *Fac x2 / *Low x2) -7/Lower Caves -7/Lower Caves (discovered 1 exit: *Fac) History --------- Turn | Location | Event 25 | -11/Scrapyard | Discovered new exit (range 15) 189 | -11/Scrapyard | Entered Materials 304 | -10/Materials | Build established: Mutant 337 | -10/Materials | Discovered new exit (range 13) 821 | -10/Materials | Discovered new exit (range 11) 868 | -10/Materials | Discovered new exit (range 16) 1218 | -10/Materials | Repaired Seismic Detector 1579 | -10/Materials | Discovered new exit (range 6) 1633 | -10/Materials | Core integrity fell below 50% 1779 | -10/Materials | Entered Mines 2114 | -10/Mines | Received a Rocket Launcher from a helpful Derelict 2114 | -10/Mines | Learned location of Storage (-9) 2119 | -10/Mines | Learned location of Zion (-7) 2217 | -10/Mines | Learned Materials terminal intel 2234 | -10/Mines | Excavation squad dispatched 2234 | -10/Mines | A large section of the Mines collapsed 2484 | -10/Mines | Excavation squad dispatched 2616 | -10/Mines | Discovered new exit (range 7) 2624 | -10/Mines | Core integrity fell below 20% 2637 | -10/Mines | Escorted by a lone wolf Derelict 2639 | -10/Mines | Entered Materials 2639 | -9/Materials | Accompanied by 1 ally 2639 | -9/Materials | Evolved 2 slots: Utility x2 2640 | -9/Materials | Loaded intel: 12 terminal locations 2753 | -9/Materials | Discovered new exit (range 12) 2784 | -9/Materials | Repaired Seismic Detector 3077 | -9/Materials | Build established: Scavenger-Mutant 3117 | -9/Materials | Discovered new exit (range 8) 3127 | -9/Materials | Discovered new exit (range 16) 3352 | -9/Materials | Learned Recycling recycling unit intel 3429 | -9/Materials | Learned Storage emergency access door positions 3434 | -9/Materials | Repaired Imp. Assault Rifle 3452 | -9/Materials | Loaded intel: 32 trap records 3459 | -9/Materials | Discovered new exit (range 3) 3465 | -9/Materials | Identified exit to Materials 3465 | -9/Materials | Learned location of 1 exit from Materials 3470 | -9/Materials | Learned Storage emergency access door positions 3510 | -9/Materials | Learned Materials trap positions 3546 | -9/Materials | Learned location of Mines (-8) 3647 | -9/Materials | Lost 7 parts (1p3n3w) 3665 | -9/Materials | Identified exit to Mines 3665 | -9/Materials | Identified exit to Storage 4036 | -9/Materials | Entered Storage 4078 | -9/Storage | Build established: Mutant 4179 | -9/Storage | Garrison activated, responded to threat 4337 | -9/Storage | Core integrity fell below 50% 4617 | -9/Storage | Repaired Arm. Wheel 4670 | -9/Storage | Learned location of Armory (-4) 4706 | -9/Storage | Repaired Imp. EM Shotgun 4757 | -9/Storage | Discovered exit to Materials (range 16) 5121 | -9/Storage | Core integrity fell below 20% 5479 | -9/Storage | Used back door to open Recycling access 5479 | -9/Storage | Discovered new exit (range 5) 5483 | -9/Storage | Entered Recycling 5484 | -9/Recycling | Loaded intel: 4 recycling unit locations 6021 | -9/Recycling | Learned Storage emergency access door positions 6091 | -9/Recycling | Learned 2 Materials zone layouts 6109 | -9/Recycling | Discovered new exit (range 5) 6152 | -9/Recycling | Learned Materials stockpile data 6205 | -9/Recycling | Identified exit to Scraptown 6281 | -9/Recycling | Learned location of Mines (-9) 6380 | -9/Recycling | Learned Materials trap positions 6430 | -9/Recycling | Learned location of 2 exits from Materials 6531 | -9/Recycling | Scanned before Scraplab entrance 6550 | -9/Recycling | Entered Scraplab 6599 | -9/Recycling | Angered Scraplab inhabitants 6605 | -9/Recycling | Found Prototype Device 6605 | -9/Recycling | Identified Scrap Engine 6936 | -9/Recycling | Entered Factory 6936 | -7/Factory | Evolved 4 slots: Propulsion x3, Utility x1 7622 | -7/Factory | Build established: Construct 7917 | -7/Factory | Repaired Arm. Wheel 8117 | -7/Factory | System corruption reached 10% 8269 | -7/Factory | Fabricated Imp. Targeting Computer? 8523 | -7/Factory | Discovered new exit (range 11) 9106 | -7/Factory | Identified exit to Factory 9386 | -7/Factory | Garrison activated, responded to threat 9456 | -7/Factory | Lost 3 allies 9601 | -7/Factory | Core integrity fell below 50% 9663 | -7/Factory | Sucked down chute 9663 | -7/Factory | Entered Waste 9688 | -7/Waste | Spotted C-40 Crusher 9702 | -7/Waste | Spotted C-40 Crusher 9743 | -7/Waste | Spotted C-40 Crusher 9744 | -7/Waste | Spotted C-40 Crusher 9745 | -7/Waste | Spotted C-40 Crusher 9749 | -7/Waste | Spotted C-40 Crusher 9766 | -7/Waste | Discovered new exit (range 16) 9790 | -7/Waste | Entered Factory 10415 | -7/Factory | Identified exit to Lower Caves 10552 | -7/Factory | Discovered exit to Factory (range 9) 10598 | -7/Factory | Lost 4 parts (4n) 10679 | -7/Factory | Repaired Med. Reactive Plating 10833 | -7/Factory | Discovered exit to Factory (range 16) 11090 | -7/Factory | Lost 3 parts (1p2n) 11264 | -7/Factory | Entered Lower Caves 11281 | -7/Lower Caves | Encountered a Warlord checkpoint 11304 | -7/Lower Caves | Build established: Mutant 11473 | -7/Lower Caves | Core integrity fell below 20% 11815 | -7/Lower Caves | Build established: Scavenger-Mutant 12386 | -7/Lower Caves | Discovered new exit (range 12) 12400 | -7/Lower Caves | Build established: Mutant 12412 | -7/Lower Caves | Entered another Lower Caves area 12428 | -7/Lower Caves | Discovered exit to Factory (range 7) 12663 | -7/Lower Caves | Spotted B-75 Beast 12936 | -7/Lower Caves | Destroyed self with Precision Grenade Launcher Last Messages --------------- mechanism malfunctions. 12696_ The unstable cave ceiling collapses. 12707_ 5OWN=VZ |U&IC9PAXYCX=#ONXP/ ,FX%AFZFYG 12834_ Acquired 52 matter. 12867_ System corrupted: Component data lost. 12884_ System corrupted: Matter fused (-10). 12907_ System corrupted: Matter fused (-7). 12936_ System corrupted: FCS attempts to trigger Prc. Grenade Launcher. 12936_ System corrupted: Prc. Grenade Launcher misfires. Map ----- +----------------------------------------------------+ | ???????????????????????????????????????????? ?? | | ????????????????????????????????????????????? ?? | | ????????????????????????????????????????????? ## | | ????????????????????????????????????????????? | | ?????????????????????????????????????????????? | | ?????????????????????????????????????????????? | | ??????????????????????????????????????????????# | | ?????????????????????????????????????????????## | | ????????????????????????????????????????????## | | ????????????????????????????##??????????????? | | ??????????????????????????? # ???????????????? | | ??????????????????????????? ##??????????????## | | ??????????????????????????? ??????????????#" | | ???????????????????????????? ??????????#????#% | | ????????????????????????????? ?????????? ????# | | ?????????????????????????????? ?????????? ????# | | ??????????????????????????????# ##???????? #???# | | ??????????????????????????????# #???????? #???# | | ??????????????????????????????# ####??### ##??# | | ??????????????????????????????# ### #??# | | ??????????????????????????????# ## #??# | | ??????????????????????????????## # #?# #?## | | ?????????????????????????####### # #?# ### | | ????????????????????????## ## #?# ## | | ????????????????????????# # # # ### ## # | | ????????????????????????#@# ## ## ## # | | ????????????????????????## ### ### ## | | ?????????????????????????####?####### ## "## | | ?????????????????????????????????## # #?## | | ?????????????????????????????????# ### #??# | | ????????????????????????????????## ##?# #?? | | ????????????????????????????????# #### #?? | | ????????????????????????????????# ## #?? | | ????????????????????????????????## #?? | | ?????????????????????????????????## ##?### | | ????????????????????????????????### #???? | | ????????????????????????????????# # #???# | | ????????????????????????????????# [ ### | | ????????????????????????????????## | | ??????????????????????????????### | | ??????????????????????????????# # ## #### | | ??????????????????????????????## ### ##??? | | ???????????????????????????????## ###?# #???? | | ????????????????????????????????#####???# #???? | | ????????????????????????????????????????# #???? | | ????????????????????????????????????????# #???? | | ????????????????????????????????????????# #???? | | ???????????????????????????????????????## ##??? | | ???????????????????????????????????????# ##### | | ???????????????????????????????????????### | +----------------------------------------------------+ Best States ------------- Heat Dissipation 38 Energy Generation 17 Energy Capacity 300 Matter Stores 300 Matter Capacity 300 Sight Range 16 Robot Scan Range 15 Terrain Scan Range 16 Terrain Scan Density 10 Armor Coverage 300 Resistance: KI 30 Evasion (%) 44 Targeting Accuracy 6 Recoil Reduction 2 Matter Filtering 30 Offensive Hacking 10 Authchip Count 1 Item Schematics ----------------- Hacking Suite | -9/Materials | Scanalyzed Tractor Beam | -9/Materials | Extracted Salvage Targeting Computer | -9/Recycling | Hacked Imp. Salvage Targeting Computer | -9/Recycling | Hacked Imp. Targeting Computer | -9/Recycling | Hacked Arm. Wheel | -9/Recycling | Hacked Mak. Salvage Targeting Computer | -7/Factory | Scanalyzed Robot Schematics ------------------ None Fabricated ------------ Imp. Targeting Computer | x2 | -7/Factory Repaired ---------- Seismic Detector | 20% | -10/Materials Seismic Detector | 20% | -9/Materials Imp. Assault Rifle | 42% | -9/Materials Arm. Wheel | 30% | -9/Storage Imp. EM Shotgun | 41% | -9/Storage Arm. Wheel | 8% | -7/Factory Med. Reactive Plating | 60% | -7/Factory Alien Tech Used ----------------- None Achievements -------------- None Challenges ------------ None Game ------ Seed GrenadeDiametricCanceller Manual? 0 Play Time 02:52:01 Cumulative 403.4 hours Start 2025.08.26 @ 23:56:14 End 2025.08.27 @ 13:30:26 Sessions 2 Manual Loads 0 Difficulty Rogue Special Mode None Game No. 131 Rogue 129 Adventurer 0 Explorer 2 Win Type - Total 10 Types 8/0/1/1/0/0/0/0/0/0 Lore% 82 Gallery% 76 Achievement% 76 Wizard Run 0 Options --------- Layout 2 ASCII 0 Keyboard 1 Movement Numpad Keybinds 0 Fullscreen 1 Font 24/Smallcaps Map View 50x44 Zoom Use 0% Tactical HUD 1 Map Filters NONE Filters NONE Steam 0 RUN: 922dd190-f0c8-4852-b975-d3a0ab3ef2c5